bitfinex/quotes_SOLUSD_20241126
["timestamp","ask_amount","ask_price","bid_price","bid_amount"]
[1732638831014,39.39059142,231.52,231.43,35.07119142]
[1732638831215,35.07119142,231.46,231.39,35.07119142]
[1732638831406,35.07119142,231.48,231.41,35.07119142]
[1732638831817,0.12549,231.49,231.41,35.07119142]
[1732638832924,28.222174,231.49,231.41,35.07119142]
[1732638833623,0.12549,231.45,231.39,35.07119142]
[1732638834026,0.12549,231.47,231.39,35.07119142]
[1732638834339,35.07119142,231.52,231.45,35.07119142]
[1732638834539,0.12549,231.51,231.45,35.07119142]
[1732638835311,0.12549,231.51,231.43,35.07119142]
[1732638835926,35.07119142,231.5,231.41,35.07119142]
[1732638836321,4.3198,231.49,231.41,35.07119142]
[1732638836628,35.07119142,231.52,231.43,35.07119142]
[1732638836832,4.3192,231.53,231.45,35.07119142]
[1732638837034,39.39019142,231.54,231.45,35.07119142]
[1732638837837,35.07119142,231.56,231.47,35.07119142]
[1732638838042,35.07119142,231.6,231.51,35.07119142]
[1732638838241,35.07119142,231.62,231.53,35.07119142]
[1732638838411,35.07119142,231.54,231.42,4.3211]
[1732638838618,35.07119142,231.45,231.34,4.3226]
[1732638838817,40.07119142,231.6,231.21,5.0]
[1732638838818,35.07119142,231.43,231.35,35.07119142]
[1732638839044,35.07119142,231.41,231.33,35.07119142]
[1732638839348,35.07119142,231.37,231.29,52.36678242]
[1732638839529,35.07119142,231.39,231.31,35.07119142]
[1732638839713,35.07119142,231.41,231.33,35.07119142]
[1732638840118,58.84807542,231.47,231.37,35.07119142]
[1732638840526,0.12549,231.44,231.37,35.07119142]
[1732638841043,50.07239142,231.51,231.43,35.07119142]
[1732638841223,39.39079142,231.51,231.43,35.07119142]
[1732638841418,4.3196,231.51,231.45,35.07119142]
[1732638841724,39.39079142,231.51,231.43,35.07119142]
[1732638841913,35.07119142,231.49,231.4,35.07119142]
[1732638842114,39.39079142,231.51,231.42,35.07119142]
[1732638842316,4.44589,231.46,231.4,35.07119142]
[1732638842624,0.12549,231.48,231.42,35.07119142]
[1732638842833,4.3199,231.49,231.42,35.07119142]
[1732638843032,39.39079142,231.51,231.44,35.07119142]
[1732638843249,39.39079142,231.51,231.36,35.07119142]
[1732638843250,39.39079142,231.51,231.42,35.07119142]
[1732638843444,35.07119142,231.49,231.4,35.07119142]
[1732638843750,39.39079142,231.51,231.42,35.07119142]
[1732638843951,35.07119142,231.55,231.46,35.07119142]
[1732638844155,39.38909142,231.59,231.5,35.07119142]
[1732638844351,4.3179,231.59,231.54,35.07119142]
[1732638844647,4.3179,231.59,231.52,35.07119142]
[1732638845032,39.38889142,231.61,231.52,35.07119142]
[1732638845233,39.38889142,231.61,231.54,35.07119142]
[1732638845649,35.07119142,231.65,231.56,35.07119142]
[1732638845859,4.3172,231.64,231.58,35.07119142]
[1732638846243,0.12549,231.63,231.56,35.07119142]
[1732638846430,4.3174,231.62,231.56,35.07119142]
[1732638847342,35.07119142,231.59,231.51,35.07119142]
[1732638847652,39.38839142,231.63,231.55,35.07119142]
[1732638847838,35.07119142,231.59,231.51,35.07119142]
[1732638848034,35.07119142,231.57,231.49,35.07119142]
[1732638848547,35.07119142,231.61,231.53,35.07119142]
[1732638848750,35.07119142,231.55,231.47,35.07119142]
[1732638849140,35.07119142,231.57,231.49,35.07119142]
[1732638849734,4.3185,231.56,231.49,35.07119142]
[1732638850564,10.794,231.61,231.53,35.07119142]
[1732638850565,35.07119142,231.61,231.53,35.07119142]
[1732638850969,11.3080833,231.66,231.47,4.3201]
[1732638850970,35.07119142,231.59,231.51,35.07119142]
[1732638851278,35.07119142,231.61,231.53,35.07119142]
[1732638851569,35.07119142,231.57,231.49,35.07119142]
[1732638851772,0.12549,231.56,231.49,35.07119142]
[1732638851939,0.12549,231.56,231.45,4.3205]
[1732638851940,35.07119142,231.53,231.45,35.07119142]
[1732638852338,0.12549,231.52,231.45,35.07119142]
[1732638852564,35.07119142,231.51,231.43,35.07119142]
[1732638853077,4.3187,231.55,231.47,35.07119142]
[1732638853078,39.38989142,231.55,231.47,35.07119142]
[1732638853244,35.07119142,231.59,231.51,35.07119142]
[1732638853659,0.12549,231.58,231.51,35.07119142]
[1732638853869,4.3183,231.57,231.51,35.07119142]
[1732638854382,35.07119142,231.59,231.48,4.3199]
[1732638854383,4.3181,231.59,231.55,35.07119142]
[1732638855074,0.5161833,231.66,231.57,35.07119142]
[1732638855253,0.5161833,231.66,231.62,35.07119142]
[1732638855892,4.8328833,231.66,231.6,35.07119142]
[1732638856253,0.5161833,231.66,231.64,35.07119142]
[1732638856658,0.5161833,231.66,231.62,35.07119142]
[1732638856948,0.5161833,231.66,231.64,35.07119142]
[1732638857459,0.5161833,231.66,231.58,35.07119142]
[1732638857460,35.07119142,231.65,231.58,35.07119142]
[1732638857768,0.5161833,231.66,231.52,23.776884]
[1732638857769,35.07119142,231.63,231.56,35.07119142]
[1732638857983,4.3174,231.62,231.54,55.07119142]
[1732638858745,35.07119142,231.63,231.54,55.07119142]
[1732638858746,4.3171,231.64,231.6,35.07119142]
[1732638859374,4.3171,231.64,231.58,35.07119142]
[1732638859671,20.5161833,231.66,231.6,35.07119142]
[1732638859672,0.5161833,231.66,231.6,35.07119142]
[1732638859864,4.8328833,231.66,231.6,35.07119142]
[1732638860375,0.5161833,231.66,231.62,35.07119142]
[1732638860579,0.5161833,231.66,231.57,4.3183]
[1732638860767,0.5161833,231.66,231.64,35.07119142]
[1732638861275,0.5161833,231.66,231.65,23.776884]
[1732638861589,0.5161833,231.66,231.65,28.776884]
[1732638861750,3.4649,231.77,231.65,28.776884]
[1732638861751,3.4649,231.77,231.76,35.07119142]
[1732638862152,3.4649,231.77,231.76,39.38599142]
[1732638862375,3.4649,231.77,231.76,35.07119142]
[1732638863279,3.4649,231.77,231.76,58.84807542]
[1732638864173,3.4649,231.77,231.76,63.84807542]
[1732638864751,3.4649,231.77,231.76,58.84807542]
[1732638864951,3.4649,231.77,231.76,63.84807542]
[1732638865196,3.4649,231.77,231.76,58.84807542]
[1732638865675,0.5161833,231.89,231.79,20.0]
[1732638865853,0.5161833,231.89,231.88,35.07119142]
[1732638869354,0.5161833,231.89,231.88,58.84807542]
[1732638871079,0.5161833,231.89,231.88,35.07119142]
[1732638872573,0.5161833,231.89,231.88,58.84807542]
[1732638874481,35.07119142,232.06,231.88,58.84807542]
[1732638874482,4.3097,232.04,231.93,20.0]
[1732638874781,4.3097,232.04,232.01,35.07119142]
[1732638874972,4.3097,232.04,231.93,20.0]
[1732638874973,4.3097,232.04,231.99,35.07119142]
[1732638875377,50.15489142,232.04,231.95,35.07119142]
[1732638875589,35.07119142,232.02,231.95,35.07119142]
[1732638876189,35.07119142,231.98,231.89,35.07119142]
[1732638876503,15.0881,231.97,231.89,35.07119142]
[1732638876986,35.07119142,231.93,231.85,35.07119142]
[1732638877369,35.07119142,231.95,231.89,35.07119142]
[1732638877870,15.0881,231.97,231.91,35.07119142]
[1732638878772,15.0881,231.97,231.84,39.38439142]
[1732638878773,4.3109,231.97,231.93,35.07119142]
[1732638879366,4.3109,231.97,231.95,35.07119142]
[1732638879574,4.3109,231.97,231.93,35.07119142]
[1732638879767,6.49799,231.96,231.8,20.0]
[1732638879994,35.07119142,231.9,231.72,15.0043]
[1732638880163,35.07119142,231.88,231.8,35.07119142]
[1732638880372,35.07119142,231.86,231.78,35.07119142]
[1732638880679,35.07119142,231.88,231.78,35.07119142]
[1732638881677,0.12549,231.85,231.76,35.07119142]
[1732638881895,35.07119142,231.83,231.74,35.07119142]
[1732638882109,0.12549,231.82,231.74,35.07119142]
[1732638882278,35.07119142,231.79,231.72,35.07119142]
[1732638882598,0.12549,231.8,231.72,35.07119142]
[1732638882896,35.07119142,231.81,231.72,35.07119142]
[1732638883206,0.12549,231.78,231.7,35.07119142]
[1732638883496,35.07119142,231.77,231.7,35.07119142]
[1732638883700,35.07119142,231.83,231.74,35.07119142]
[1732638884022,35.07119142,231.83,231.76,35.07119142]
[1732638884193,35.07119142,231.85,231.76,35.07119142]
[1732638884494,58.2195,231.88,231.8,35.07119142]
[1732638884495,4.3133,231.84,231.8,35.07119142]
[1732638885086,15.0323,231.91,231.82,35.07119142]
[1732638885087,4.3128,231.87,231.82,35.07119142]
[1732638885290,45.85049142,231.93,231.86,35.07119142]
[1732638885517,45.85049142,231.93,231.74,5.0]
[1732638885518,4.3118,231.92,231.88,35.07119142]
[1732638885677,4.3118,231.92,231.86,35.07119142]
[1732638886491,6.3725,231.96,231.77,5.0]
[1732638886492,4.3114,231.94,231.88,35.07119142]
[1732638887195,11.86440904,231.97,231.92,35.07119142]
[1732638887386,11.86440904,231.97,231.94,35.07119142]
[1732638888599,11.86440904,231.97,231.9,35.07119142]
[1732638889185,11.86440904,231.97,231.92,35.07119142]
[1732638889882,11.86440904,231.97,231.94,35.07119142]
[1732638890081,7.55340904,231.97,231.96,35.07119142]
[1732638890275,4.3099,232.02,231.96,35.07119142]
[1732638890677,35.07119142,231.98,231.9,35.07119142]
[1732638892690,4.3101,232.01,231.94,35.07119142]
[1732638893202,35.07119142,232.0,231.92,35.07119142]
[1732638894417,4.3101,232.01,231.94,35.07119142]
[1732638894786,4.3101,232.01,231.98,35.07119142]
[1732638894990,35.07119142,231.99,231.89,35.07119142]
[1732638895190,35.07119142,231.92,231.85,35.07119142]
[1732638895927,35.07119142,231.94,231.85,35.07119142]
[1732638896311,35.07119142,231.92,231.85,35.07119142]
[1732638897000,35.07119142,231.89,231.81,35.07119142]
[1732638898524,4.3125,231.88,231.81,35.07119142]
[1732638900125,0.12549,231.85,231.77,35.07119142]
[1732638900327,35.07119142,231.84,231.77,35.07119142]
[1732638900510,35.19668142,231.82,231.74,35.07119142]
[1732638901335,0.12549,231.82,231.76,35.07119142]
[1732638901630,35.07119142,231.8,231.72,35.07119142]
[1732638901811,15.0972,231.83,231.78,35.07119142]
[1732638902242,4.3135,231.83,231.82,35.07119142]
[1732638902535,6.3725,231.94,231.82,35.07119142]
[1732638902723,15.7331,231.98,231.92,35.07119142]
[1732638902931,4.3109,231.97,231.92,35.07119142]
[1732638903323,4.3109,231.97,231.9,35.07119142]
[1732638903509,15.0881,231.97,231.9,35.07119142]
[1732638903710,4.3109,231.97,231.9,35.07119142]
[1732638903919,4.3109,231.97,231.92,35.07119142]
[1732638904126,4.3109,231.97,231.9,35.07119142]
[1732638904636,4.3109,231.97,231.92,35.07119142]
[1732638904811,10.7756,232.01,231.94,35.07119142]
[1732638905132,41.57089142,232.02,231.84,35.07119142]
[1732638905133,35.07119142,231.98,231.9,35.07119142]
[1732638905627,0.12549,231.98,231.92,35.07119142]
[1732638906012,4.3107,231.99,231.92,35.07119142]
[1732638906208,4.3107,231.99,231.84,39.38439142]
[1732638906209,4.3107,231.99,231.9,35.07119142]
[1732638906413,35.07119142,231.92,231.83,35.07119142]
[1732638906623,35.07119142,231.9,231.83,35.07119142]
[1732638906935,4.3116,231.93,231.87,35.07119142]
[1732638907314,1.78418238,232.03,231.79,10.6029]
[1732638907315,4.3109,231.97,231.91,35.07119142]
[1732638907615,4.3109,231.97,231.94,35.07119142]
[1732638907817,35.07119142,231.96,231.88,35.07119142]
[1732638908038,0.12549,231.95,231.88,35.07119142]
[1732638908207,35.07119142,231.93,231.86,35.07119142]
[1732638908411,4.3114,231.94,231.88,35.07119142]
[1732638908624,4.3114,231.94,231.9,35.07119142]
[1732638909130,4.3103,232.0,231.92,35.07119142]
[1732638909442,4.3103,232.0,231.94,35.07119142]
[1732638909738,35.07119142,231.99,231.92,35.07119142]
[1732638910040,0.12549,231.98,231.9,35.07119142]
[1732638910532,15.0881,231.97,231.9,35.07119142]
[1732638910734,15.0881,231.97,231.79,11.2887]
[1732638910735,35.07119142,231.91,231.79,6.2887]
[1732638911030,35.07119142,231.86,231.79,35.07119142]
[1732638911331,35.07119142,231.86,231.77,35.07119142]
[1732638911841,35.07119142,231.82,231.73,35.07119142]
[1732638912132,35.07119142,231.84,231.77,35.07119142]
[1732638912332,0.12549,231.85,231.77,35.07119142]
[1732638912633,0.12549,231.83,231.77,35.07119142]
[1732638913130,4.3133,231.84,231.77,35.07119142]
[1732638913631,4.3127,231.87,231.83,35.07119142]
[1732638913838,15.0946,231.87,231.81,35.07119142]
[1732638914216,50.16579142,231.87,231.79,35.07119142]
[1732638914911,0.12549,231.86,231.79,35.07119142]
[1732638915134,0.12549,231.86,231.77,35.07119142]
[1732638915135,35.07119142,231.85,231.77,35.07119142]
[1732638915328,0.12549,231.82,231.75,35.07119142]
[1732638915514,0.12549,231.78,231.71,35.07119142]
[1732638915725,0.12549,231.76,231.68,35.07119142]
[1732638916033,0.12549,231.72,231.66,35.07119142]
[1732638916232,0.12549,231.72,231.64,35.07119142]
[1732638916739,10.7875,231.75,231.68,35.07119142]
[1732638916909,0.12549,231.72,231.66,35.07119142]
[1732638917333,45.85869142,231.75,231.68,35.07119142]
[1732638917541,0.12549,231.74,231.66,35.07119142]
[1732638917839,0.12549,231.72,231.64,35.07119142]
[1732638918048,23.776884,231.72,231.64,35.07119142]
[1732638918212,0.12549,231.71,231.64,35.07119142]
[1732638918536,10.7875,231.75,231.68,35.07119142]
[1732638918711,0.12549,231.74,231.68,35.07119142]
[1732638919735,10.0,231.83,231.61,4.3175]
[1732638919736,35.07119142,231.81,231.72,35.07119142]
[1732638919912,26.5473,231.78,231.74,35.07119142]
[1732638920115,4.3145,231.78,231.74,35.07119142]
[1732638920317,1.79181147,231.86,231.76,35.07119142]
[1732638920539,4.3127,231.87,231.85,35.07119142]
[1732638920714,7.55603079,231.88,231.85,35.07119142]
[1732638920916,15.0888,231.96,231.87,35.07119142]
[1732638921122,15.0888,231.96,231.88,35.07119142]
[1732638922018,35.07119142,231.95,231.86,35.07119142]
[1732638922213,35.07119142,231.95,231.88,35.07119142]
[1732638922428,15.0888,231.96,231.88,35.07119142]
[1732638922618,4.311,231.96,231.9,35.07119142]
[1732638922814,62.49729142,232.01,231.92,35.07119142]
[1732638923022,35.07119142,231.99,231.92,35.07119142]
[1732638923210,4.3103,232.0,231.92,35.07119142]
[1732638923422,0.12549,231.99,231.92,35.07119142]
[1732638923620,35.07119142,231.97,231.89,35.07119142]
[1732638923825,15.0861,232.0,231.78,10.786]
[1732638923826,35.07119142,231.93,231.85,35.07119142]
[1732638924420,0.12549,231.92,231.85,35.07119142]
[1732638924617,0.12549,231.94,231.87,35.07119142]
[1732638924819,4.3116,231.93,231.87,35.07119142]
[1732638925033,39.38279142,231.93,231.85,35.07119142]
[1732638925328,4.43689,231.94,231.89,35.07119142]
[1732638925530,4.3108,231.98,231.93,35.07119142]
[1732638925735,16.6506,232.01,231.95,35.07119142]
[1732638925736,4.3104,232.0,231.95,35.07119142]
[1732638926244,4.3104,232.0,231.93,35.07119142]
[1732638926547,0.12549,231.93,231.85,35.07119142]
[1732638926712,39.38299142,231.92,231.85,35.07119142]
[1732638926911,0.12549,231.91,231.85,35.07119142]
[1732638927337,4.3116,231.94,231.87,35.07119142]
[1732638927541,4.3111,231.96,231.89,35.07119142]
[1732638927840,4.3111,231.96,231.91,35.07119142]
[1732638928246,4.3108,231.98,231.93,35.07119142]
[1732638929028,35.07119142,232.02,231.93,35.07119142]
[1732638929236,4.3103,232.0,231.93,35.07119142]
[1732638930232,0.12549,231.97,231.91,35.07119142]
[1732638930528,0.12549,231.97,231.89,35.07119142]
[1732638931436,4.311,231.96,231.91,35.07119142]
[1732638932644,50.15989142,231.96,231.88,35.07119142]
[1732638932848,35.07119142,231.94,231.86,35.07119142]
[1732638933552,15.0907,231.93,231.86,35.07119142]
[1732638933724,58.84807542,231.92,231.84,35.07119142]
[1732638934045,35.07119142,231.86,231.78,35.07119142]
[1732638934249,4.3116,231.93,231.84,35.07119142]
[1732638934429,4.3116,231.93,231.89,35.07119142]
[1732638935356,6.0429,231.97,231.89,35.07119142]
[1732638935649,50.15989142,231.96,231.89,35.07119142]
[1732638935826,50.15989142,231.96,231.82,4.3135]
[1732638935827,50.15989142,231.96,231.87,35.07119142]
[1732638936454,50.15989142,231.96,231.84,35.07119142]
[1732638936455,0.12549,231.91,231.84,35.07119142]
[1732638936826,0.12549,231.91,231.86,35.07119142]
[1732638937028,23.902374,231.93,231.86,35.07119142]
[1732638937230,0.12549,231.89,231.82,35.07119142]
[1732638937731,0.12549,231.87,231.8,35.07119142]
[1732638937943,4.3125,231.88,231.84,35.07119142]
[1732638938154,4.3125,231.88,231.82,35.07119142]
[1732638938352,20.12549,231.87,231.8,35.07119142]
[1732638938650,0.12549,231.81,231.74,35.07119142]
[1732638939332,35.07119142,231.84,231.76,35.07119142]
[1732638939649,35.07119142,231.84,231.65,10.792]
[1732638939650,4.3136,231.82,231.78,35.07119142]
[1732638940365,5.6,231.89,231.73,4.3153]
[1732638940366,4.3129,231.87,231.8,35.07119142]
[1732638940547,4.312,231.91,231.86,35.07119142]
[1732638940864,4.312,231.91,231.88,35.07119142]
[1732638941337,2.40061686,232.0,231.9,35.07119142]
[1732638941338,10.3539,231.97,231.9,35.07119142]
[1732638941543,10.3539,231.97,231.94,35.07119142]
[1732638941544,4.311,231.97,231.94,35.07119142]
[1732638941847,0.12549,231.98,231.94,35.07119142]
[1732638942354,0.12549,231.98,231.92,35.07119142]
[1732638942761,23.902374,231.95,231.88,35.07119142]
[1732638943467,23.902374,231.93,231.86,35.07119142]
[1732638943658,23.902374,231.93,231.83,35.07119142]
[1732638943659,0.12549,231.91,231.83,35.07119142]
[1732638943840,0.12549,231.89,231.83,35.07119142]
[1732638945344,35.07119142,231.86,231.79,35.07119142]
[1732638945549,35.07119142,231.86,231.77,35.07119142]
[1732638945842,4.3131,231.85,231.79,35.07119142]
[1732638946065,4.3131,231.85,231.77,35.07119142]
[1732638946562,5.0,231.91,231.84,35.07119142]
[1732638946563,23.776884,231.91,231.84,35.07119142]
[1732638947264,0.12549,231.9,231.84,35.07119142]
[1732638947661,4.3112,231.95,231.88,35.07119142]
[1732638949056,0.12549,231.94,231.9,35.07119142]
[1732638949249,0.12549,231.94,231.88,35.07119142]
[1732638949452,4.3112,231.95,231.77,15.1011]
[1732638949453,4.3112,231.95,231.92,35.07119142]
[1732638949768,4.3109,231.97,231.92,35.07119142]
[1732638950173,4.3097,232.03,231.96,35.07119142]
[1732638950673,0.12549,232.02,231.96,35.07119142]
[1732638950857,35.19668142,232.02,231.94,35.07119142]
[1732638951054,0.12549,231.99,231.92,35.07119142]
[1732638951366,0.12549,231.94,231.86,35.07119142]
[1732638951547,4.3118,231.92,231.88,35.07119142]
[1732638951754,35.07119142,231.95,231.83,4.3134]
[1732638951755,4.3112,231.95,231.9,35.07119142]
[1732638952151,0.12549,231.94,231.9,35.07119142]
[1732638952574,0.12549,231.94,231.88,35.07119142]
[1732638952756,0.12549,231.94,231.86,35.07119142]
[1732638953255,35.07119142,231.93,231.84,35.07119142]
[1732638953658,5.0,231.99,231.92,35.07119142]
[1732638953659,20.0,231.96,231.92,35.07119142]
[1732638953864,20.0,231.96,231.84,35.07119142]
[1732638953865,15.087,231.99,231.94,35.07119142]
[1732638954557,6.1671,232.04,231.98,35.07119142]
[1732638954761,4.3097,232.03,231.98,35.07119142]
[1732638955152,0.12549,232.02,231.98,35.07119142]
[1732638955347,4.3097,232.03,231.96,35.07119142]
[1732638955569,4.3097,232.03,231.94,35.07119142]
[1732638955759,35.19668142,232.02,231.94,35.07119142]
[1732638955955,0.12549,232.0,231.94,35.07119142]
[1732638956160,0.12549,232.0,231.88,6.4809]
[1732638956161,0.12549,231.96,231.9,35.07119142]
[1732638956355,0.12549,231.96,231.81,6.4809]
[1732638956356,35.19668142,231.96,231.88,35.07119142]
[1732638956659,0.12549,231.96,231.9,35.07119142]
[1732638956856,35.07119142,231.92,231.75,10.7958]
[1732638957063,35.07119142,231.92,231.82,35.07119142]
[1732638957367,6.1671,231.96,231.82,35.07119142]
[1732638957368,23.776884,231.89,231.82,35.07119142]
[1732638957881,23.776884,231.89,231.75,10.7958]
[1732638957882,4.3125,231.88,231.84,35.07119142]
[1732638958263,4.3125,231.88,231.82,35.07119142]
[1732638958460,4.3125,231.88,231.84,35.07119142]
[1732638958863,4.3125,231.88,231.82,35.07119142]
[1732638959098,4.3125,231.88,231.84,35.07119142]
[1732638959654,4.3116,231.93,231.86,35.07119142]
[1732638960083,4.3116,231.93,231.88,35.07119142]
[1732638960281,15.0907,231.93,231.86,35.07119142]
[1732638960474,0.12549,231.92,231.86,35.07119142]
[1732638960980,0.12549,231.92,231.88,35.07119142]
[1732638961284,10.7773,231.97,231.76,15.1018]
[1732638961285,4.3107,231.98,231.9,35.07119142]
[1732638961458,39.38189142,231.98,231.9,35.07119142]
[1732638961658,15.0874,231.98,231.92,35.07119142]
[1732638961854,0.12549,231.97,231.88,35.07119142]
[1732638962282,0.12549,231.91,231.83,35.07119142]
[1732638962875,35.67119142,231.96,231.89,35.07119142]
[1732638963080,23.776884,231.97,231.89,35.07119142]
[1732638963377,15.0874,231.98,231.91,35.07119142]
[1732638963992,15.0874,231.98,231.89,35.07119142]
[1732638963993,23.902374,231.97,231.89,35.07119142]
[1732638964499,23.902374,231.92,231.84,21.42660155]
[1732638965591,23.902374,231.9,231.82,21.42660155]
[1732638966603,23.902374,231.9,231.84,21.42660155]
[1732638967379,23.902374,231.9,231.82,21.42660155]
[1732638967575,4.3123,231.89,231.84,21.42660155]
[1732638967988,4.3116,231.93,231.87,21.42660155]
[1732638968302,4.3107,231.98,231.91,21.42660155]
[1732638968467,4.3107,231.98,231.96,21.42660155]
[1732638968671,4.3101,232.01,231.96,21.42660155]
[1732638968899,7.55110324,232.05,231.99,21.42660155]
[1732638968900,7.52908194,232.04,231.99,21.42660155]
[1732638969271,4.3096,232.04,231.99,21.42660155]
[1732638969471,4.3096,232.04,232.01,21.42660155]
[1732638969688,15.0836,232.04,231.99,21.42660155]
[1732638970588,23.776884,232.03,231.99,21.42660155]
[1732638970801,45.20348555,232.03,231.94,21.42660155]
[1732638970981,0.12549,232.02,231.94,21.42660155]
[1732638971180,0.12549,232.02,231.96,21.42660155]
[1732638971608,45.20348555,232.03,231.96,21.42660155]
[1732638971609,4.3101,232.01,231.96,21.42660155]
[1732638972808,4.3101,232.01,231.94,21.42660155]
[1732638973109,4.3101,232.01,231.85,21.9223]
[1732638973110,21.42660155,231.97,231.9,21.42660155]
[1732638973292,23.776884,231.96,231.87,21.42660155]
[1732638973602,21.42660155,231.97,231.89,21.42660155]
[1732638973603,4.3116,231.93,231.89,21.42660155]
[1732638974206,23.776884,231.92,231.87,21.42660155]
[1732638974381,4.3116,231.93,231.87,21.42660155]
[1732638975280,0.12549,231.92,231.89,21.42660155]
[1732638975510,23.776884,231.98,231.91,21.42660155]
[1732638975686,23.776884,231.99,231.96,21.42660155]
[1732638975991,4.3097,232.03,231.96,21.42660155]
[1732638976394,0.12549,232.02,231.94,21.42660155]
[1732638976790,0.12549,232.0,231.94,21.42660155]
[1732638976989,0.12549,232.0,231.84,21.42660155]
[1732638976990,0.12549,231.96,231.9,21.42660155]
[1732638977218,23.902374,231.98,231.9,21.42660155]
[1732638977807,0.12549,231.96,231.9,21.42660155]
[1732638978709,20.0,232.0,231.84,21.42660155]
[1732638978710,4.3103,232.0,231.94,21.42660155]
[1732638978912,4.3103,232.0,231.96,21.42660155]
[1732638979690,10.7747,232.03,231.96,21.42660155]
[1732638980111,0.12549,232.01,231.96,21.42660155]
[1732638980691,0.12549,231.99,231.94,21.42660155]
[1732638981111,0.12549,231.95,231.87,21.42660155]
[1732638981297,23.902374,231.95,231.87,21.42660155]
[1732638981601,0.12549,231.89,231.81,21.42660155]
[1732638981798,0.12549,231.87,231.81,21.42660155]
[1732638982514,0.12549,231.87,231.83,21.42660155]
[1732638983819,23.776884,231.91,231.83,21.42660155]
[1732638984006,15.0927,231.9,231.83,21.42660155]
[1732638985118,15.0927,231.9,231.77,21.42660155]
[1732638985119,21.42660155,231.85,231.77,21.42660155]
[1732638985704,45.20348555,231.89,231.79,21.42660155]
[1732638985903,23.776884,231.87,231.79,21.42660155]
[1732638986205,23.776884,231.85,231.77,21.42660155]
[1732638986417,23.776884,231.85,231.79,21.42660155]
[1732638986618,21.42660155,231.84,231.77,21.42660155]
[1732638986808,23.776884,231.83,231.75,21.42660155]
[1732638987011,0.12549,231.82,231.75,21.42660155]
[1732638987308,0.12549,231.82,231.77,21.42660155]
[1732638987523,0.12549,231.82,231.75,21.42660155]
[1732638987920,4.3138,231.81,231.73,21.42660155]
[1732638988130,4.3138,231.81,231.71,21.42660155]
[1732638988131,45.20348555,231.8,231.71,21.42660155]
[1732638988428,21.42660155,231.75,231.67,21.42660155]
[1732638988729,23.776884,231.76,231.69,21.42660155]
[1732638989021,23.776884,231.76,231.71,21.42660155]
[1732638989225,4.3138,231.81,231.75,21.42660155]
[1732638989433,4.3129,231.86,231.8,21.42660155]
[1732638990116,4.3129,231.86,231.82,21.42660155]
[1732638990424,21.42660155,231.91,231.82,21.42660155]
[1732638990629,1.78982617,231.91,231.88,21.42660155]
[1732638990804,4.3118,231.92,231.88,21.42660155]
[1732638991123,21.42660155,231.98,231.9,21.42660155]
[1732638991327,25.73780155,231.96,231.88,21.42660155]
[1732638991623,4.3112,231.96,231.9,21.42660155]
[1732638991830,25.73780155,231.96,231.88,21.42660155]
[1732638992211,4.3112,231.96,231.88,21.42660155]
[1732638992529,4.3112,231.96,231.92,21.42660155]
[1732638992715,12.58736144,232.01,231.94,21.42660155]
[1732638992716,4.3108,231.98,231.94,21.42660155]
[1732638992918,21.42660155,231.95,231.86,21.42660155]
[1732638993119,21.42660155,231.91,231.82,41.42660155]
[1732638993320,21.42660155,231.87,231.8,21.42660155]
[1732638993628,0.12549,231.86,231.8,21.42660155]
[1732638994215,4.3129,231.87,231.82,21.42660155]
[1732638995434,0.12549,231.86,231.78,21.42660155]
[1732638995613,0.12549,231.86,231.8,21.42660155]
[1732638996119,21.42660155,231.89,231.82,21.42660155]
[1732638996317,21.42660155,231.89,231.73,22.608]
[1732638996318,4.3129,231.87,231.84,21.42660155]
[1732638996519,4.3129,231.87,231.82,21.42660155]
[1732638996735,0.12549,231.86,231.8,21.42660155]
[1732638996935,23.902374,231.86,231.78,21.42660155]
[1732638997121,21.42660155,231.81,231.72,21.42660155]
[1732638997314,23.776884,231.8,231.74,21.42660155]
[1732638998028,23.776884,231.82,231.74,21.42660155]
[1732638998327,4.3133,231.84,231.77,21.42660155]
[1732638998536,4.3133,231.84,231.79,21.42660155]
[1732638998832,28.089684,231.87,231.81,21.42660155]
[1732638999012,4.3128,231.87,231.81,21.42660155]
[1732638999823,4.3128,231.87,231.83,21.42660155]
[1732639000136,38.869584,231.9,231.81,21.42660155]
[1732639000323,21.42660155,231.87,231.79,21.42660155]
[1732639000537,21.42660155,231.81,231.74,21.42660155]
[1732639000933,23.902374,231.8,231.72,21.42660155]
[1732639001330,0.12549,231.78,231.7,21.42660155]
[1732639001650,21.42660155,231.71,231.62,61.17145507]
[1732639001823,6.5522,231.77,231.62,39.74485352]
[1732639001824,21.42660155,231.67,231.62,39.74485352]